[Event "*** Titled Tuesday Blitz"]
[Site "Chess.com"]
[Date "2018.04.03"]
[Round "4"]
[White "eldur16"]
[Black "BartoszSocko"]
[Result "1-0"]
[WhiteElo "2532"]
[BlackElo "2560"]
[TimeControl "180+2"]
[EndTime "13:52:59 PDT"]
[Termination "eldur16 won by resignation"]

1. e4 {[%clk 0:03:01.9]} 1... e6 {[%clk 0:03:01.9]} 2. d4 {[%clk 0:03:02]} 2...
d5 {[%clk 0:03:03.4]} 3. Nc3 {[%clk 0:03:01.2]} 3... Bb4 {[%clk 0:03:04.3]} 4.
e5 {[%clk 0:03:02]} 4... c5 {[%clk 0:03:05.5]} 5. a3 {[%clk 0:03:02.8]} 5...
Bxc3+ {[%clk 0:03:06.8]} 6. bxc3 {[%clk 0:03:03.9]} 6... Ne7 {[%clk 0:03:08.7]}
7. Nf3 {[%clk 0:03:04]} 7... Bd7 {[%clk 0:03:06.8]} 8. Bd3 {[%clk 0:03:03.3]}
8... Ba4 {[%clk 0:03:07.5]} 9. O-O {[%clk 0:03:01.9]} 9... Qc7 {[%clk
0:03:03.5]} 10. Rb1 {[%clk 0:02:48.3]} 10... Nd7 {[%clk 0:03:04.1]} 11. Ng5
{[%clk 0:02:46]} 11... h6 {[%clk 0:02:55.4]} 12. Qh5 {[%clk 0:02:39.8]} 12... g6
{[%clk 0:02:56.5]} 13. Qh3 {[%clk 0:02:39.7]} 13... c4 {[%clk 0:02:31.7]} 14.
Be2 {[%clk 0:02:31.2]} 14... Bxc2 {[%clk 0:02:31.5]} 15. Rb2 {[%clk 0:02:30.4]}
15... Bf5 {[%clk 0:02:22.1]} 16. g4 {[%clk 0:02:29.3]} 16... Bd3 {[%clk
0:02:01.7]} 17. Bf4 {[%clk 0:02:09.9]} 17... Nb6 {[%clk 0:01:38.1]} 18. Rc1
{[%clk 0:01:58.6]} 18... Na4 {[%clk 0:01:29.7]} 19. Rb4 {[%clk 0:01:44.2]} 19...
Bxe2 {[%clk 0:01:22.3]} 20. Rxa4 {[%clk 0:01:44.5]} 20... Nc6 {[%clk 0:01:23.1]}
21. Rb1 {[%clk 0:01:18.5]} 21... Bd3 {[%clk 0:01:14.2]} 22. Rb2 {[%clk
0:01:12.8]} 22... a5 {[%clk 0:00:58.7]} 23. Nf3 {[%clk 0:01:01.5]} 23... Na7
{[%clk 0:00:46]} 24. Qh4 {[%clk 0:00:53.2]} 24... b5 {[%clk 0:00:32.7]} 25. Qf6
{[%clk 0:00:52.9]} 25... Rg8 {[%clk 0:00:33.8]} 26. Bxh6 {[%clk 0:00:47.1]}
26... bxa4 {[%clk 0:00:34.7]} 27. Ng5 {[%clk 0:00:35.6]} 27... Qe7 {[%clk
0:00:26.2]} 28. Qxe7+ {[%clk 0:00:32.6]} 28... Kxe7 {[%clk 0:00:27]} 29. Rb7+
{[%clk 0:00:33.4]} 29... Ke8 {[%clk 0:00:27.2]} 30. Nxf7 {[%clk 0:00:33.8]}
30... Nc8 {[%clk 0:00:23.4]} 31. Bg5 {[%clk 0:00:26.8]} 31... Rg7 {[%clk
0:00:20.7]} 32. Nd6+ {[%clk 0:00:22.5]} 32... Kf8 {[%clk 0:00:21.9]} 33. Bh6
{[%clk 0:00:17.9]} 33... Ra7 {[%clk 0:00:10.4]} 34. Bxg7+ {[%clk 0:00:17.6]}
34... Kg8 {[%clk 0:00:11.8]} 35. Rb8 {[%clk 0:00:08.6]} 35... Kxg7 {[%clk
0:00:09.6]} 36. Nxc8 {[%clk 0:00:09.2]} 36... Rc7 {[%clk 0:00:08.7]} 37. Nd6
{[%clk 0:00:07.1]} 37... Rc6 {[%clk 0:00:07.1]} 38. f4 {[%clk 0:00:06.7]} 38...
Bc2 {[%clk 0:00:04.9]} 39. Rb7+ {[%clk 0:00:06.7]} 39... Kg8 {[%clk 0:00:04]}
40. Kf2 {[%clk 0:00:07.3]} 40... Ra6 {[%clk 0:00:04.8]} 41. Kg3 {[%clk 0:00:08]}
41... Ra8 {[%clk 0:00:06]} 42. Kh4 {[%clk 0:00:09.1]} 42... Rf8 {[%clk
0:00:04.3]} 43. Kg5 {[%clk 0:00:10.2]} 43... Bd3 {[%clk 0:00:04.9]} 44. h4
{[%clk 0:00:11.1]} 44... Bc2 {[%clk 0:00:05.6]} 45. Rc7 {[%clk 0:00:12]} 45...
Bd3 {[%clk 0:00:06.3]} 46. Nc8 {[%clk 0:00:13]} 46... Re8 {[%clk 0:00:06.4]} 47.
Ne7+ {[%clk 0:00:13.7]} 47... Kh8 {[%clk 0:00:07.2]} 48. Nxg6+ {[%clk
0:00:14.5]} 48... Bxg6 {[%clk 0:00:08.4]} 49. Kxg6 {[%clk 0:00:15.5]} 49... Rg8+
{[%clk 0:00:10]} 50. Kh5 {[%clk 0:00:16.4]} 50... Rb8 {[%clk 0:00:10.8]} 51. f5
{[%clk 0:00:16.7]} 51... exf5 {[%clk 0:00:10.5]} 52. gxf5 {[%clk 0:00:17.7]}
52... Rb2 {[%clk 0:00:09.6]} 53. f6 {[%clk 0:00:18.4]} 53... Kg8 {[%clk
0:00:10.5]} 54. e6 {[%clk 0:00:18.3]} 54... Re2 {[%clk 0:00:12]} 55. Rc8+ {[%clk
0:00:18]} 55... Kh7 {[%clk 0:00:13.3]} 56. e7 {[%clk 0:00:19]} 56... Rg2 {[%clk
0:00:08.8]} 57. f7 {[%clk 0:00:16.6]} 57... Rg7 {[%clk 0:00:04.7]} 58. Rh8+
{[%clk 0:00:16.4]} 58... Kxh8 {[%clk 0:00:05.6]} 59. f8=Q+ {[%clk 0:00:16.7]}
1-0

[Event "*** Titled Tuesday Blitz"]
[Site "Chess.com"]
[Date "2018.04.03"]
[Round "4"]
[White "SamCopeland"]
[Black "DrZeiss"]
[Result "0-1"]
[WhiteElo "2020"]
[BlackElo "2220"]
[TimeControl "180+2"]
[EndTime "13:52:59 PDT"]
[Termination "DrZeiss won by resignation"]

1. e4 {[%clk 0:03:01.9]} 1... c5 {[%clk 0:02:55.9]} 2. Nf3 {[%clk 0:03:01.8]}
2... Nc6 {[%clk 0:02:56.4]} 3. d4 {[%clk 0:03:01.4]} 3... cxd4 {[%clk
0:02:57.4]} 4. Nxd4 {[%clk 0:03:03.3]} 4... e5 {[%clk 0:02:58.4]} 5. Nb5 {[%clk
0:03:00.7]} 5... a6 {[%clk 0:02:58.9]} 6. Nd6+ {[%clk 0:03:00.5]} 6... Bxd6
{[%clk 0:03:00]} 7. Qxd6 {[%clk 0:03:02.3]} 7... Qf6 {[%clk 0:03:01.1]} 8. Qd2
{[%clk 0:02:55.2]} 8... Nge7 {[%clk 0:03:00.5]} 9. Nc3 {[%clk 0:02:53.8]} 9...
O-O {[%clk 0:03:00.9]} 10. Qg5 {[%clk 0:02:44.9]} 10... Qxg5 {[%clk 0:02:47.1]}
11. Bxg5 {[%clk 0:02:41.2]} 11... f6 {[%clk 0:02:44.8]} 12. Be3 {[%clk
0:02:40.1]} 12... f5 {[%clk 0:02:33.2]} 13. exf5 {[%clk 0:02:16.3]} 13... d5
{[%clk 0:02:28.9]} 14. Bc5 {[%clk 0:02:07]} 14... Bxf5 {[%clk 0:02:13.4]} 15.
O-O-O {[%clk 0:02:04]} 15... Be6 {[%clk 0:01:51.8]} 16. f3 {[%clk 0:01:54.7]}
16... Rac8 {[%clk 0:01:48.1]} 17. Be2 {[%clk 0:01:35.2]} 17... Rfd8 {[%clk
0:01:45.5]} 18. Rhe1 {[%clk 0:01:35.3]} 18... b5 {[%clk 0:01:39.2]} 19. Bf1
{[%clk 0:01:33.1]} 19... Nf5 {[%clk 0:01:33.2]} 20. a3 {[%clk 0:01:11.1]} 20...
h5 {[%clk 0:01:23.2]} 21. Bb6 {[%clk 0:00:43.1]} 21... Rd7 {[%clk 0:01:21.2]}
22. Bf2 {[%clk 0:00:43.2]} 22... Kf7 {[%clk 0:01:03]} 23. Bb6 {[%clk 0:00:42.4]}
23... Rb7 {[%clk 0:00:49.4]} 24. Bf2 {[%clk 0:00:41.9]} 24... Rd7 {[%clk
0:00:49.4]} 25. Kb1 {[%clk 0:00:42.5]} 25... Rb8 {[%clk 0:00:45.9]} 26. Bc5
{[%clk 0:00:42.1]} 26... Kf6 {[%clk 0:00:40.2]} 27. Kc1 {[%clk 0:00:40.1]} 27...
b4 {[%clk 0:00:38.1]} 28. axb4 {[%clk 0:00:38.1]} 28... Nxb4 {[%clk 0:00:39.1]}
29. Bxb4 {[%clk 0:00:38]} 29... Rxb4 {[%clk 0:00:40.3]} 30. Bxa6 {[%clk
0:00:38.3]} 30... Ra7 {[%clk 0:00:33.2]} 31. Bd3 {[%clk 0:00:35.8]} 31... Ra1+
{[%clk 0:00:21.3]} 32. Kd2 {[%clk 0:00:36.6]} 32... Rxd1+ {[%clk 0:00:19.9]} 33.
Nxd1 {[%clk 0:00:38.5]} 33... Nh4 {[%clk 0:00:17.2]} 34. Bf1 {[%clk 0:00:35.2]}
34... g5 {[%clk 0:00:13.8]} 35. c3 {[%clk 0:00:35.9]} 35... Rb6 {[%clk
0:00:13.6]} 36. Kc1 {[%clk 0:00:21.2]} 36... Nf5 {[%clk 0:00:13]} 37. Ne3 {[%clk
0:00:21.3]} 37... Nh4 {[%clk 0:00:13.3]} 38. Rd1 {[%clk 0:00:20.8]} 38... Rd6
{[%clk 0:00:14.4]} 39. Nc4 {[%clk 0:00:20.9]} 39... Rd7 {[%clk 0:00:13.8]} 40.
Nb6 {[%clk 0:00:20.6]} 40... Rd6 {[%clk 0:00:14.6]} 41. Nc4 {[%clk 0:00:21.4]}
41... Rd7 {[%clk 0:00:15.7]} 42. Nb6 {[%clk 0:00:22.2]} 42... Rd6 {[%clk
0:00:16.5]} 43. Nc4 {[%clk 0:00:23.1]} 43... Rd8 {[%clk 0:00:17.3]} 44. Kc2
{[%clk 0:00:19.8]} 44... Nf5 {[%clk 0:00:13.8]} 45. Rd2 {[%clk 0:00:06.3]} 45...
Rb8 {[%clk 0:00:12.3]} 46. Na5 {[%clk 0:00:06.5]} 46... Ne3+ {[%clk 0:00:12.9]}
47. Kc1 {[%clk 0:00:03.8]} 47... Nxf1 {[%clk 0:00:14.8]} 48. Rf2 {[%clk
0:00:04.5]} 48... Ne3 {[%clk 0:00:15.3]} 49. Nc6 {[%clk 0:00:06]} 49... Rb6
{[%clk 0:00:15.3]} 50. Re2 {[%clk 0:00:06.8]} 50... Rxc6 {[%clk 0:00:14.6]} 51.
Rxe3 {[%clk 0:00:07.9]} 51... d4 {[%clk 0:00:15.7]} 52. Rd3 {[%clk 0:00:09.4]}
52... Bf5 {[%clk 0:00:16.4]} 53. Rd2 {[%clk 0:00:10.4]} 53... dxc3 {[%clk
0:00:17.3]} 54. bxc3 {[%clk 0:00:12.3]} 54... Rxc3+ {[%clk 0:00:18.7]} 55. Kd1
{[%clk 0:00:14.2]} 55... Ra3 {[%clk 0:00:19.2]} 56. Ke2 {[%clk 0:00:15.6]} 56...
Rc3 {[%clk 0:00:19.9]} 57. Kf2 {[%clk 0:00:16.7]} 57... Rc2 {[%clk 0:00:21]} 58.
Rxc2 {[%clk 0:00:17.1]} 58... Bxc2 {[%clk 0:00:22.9]} 59. Ke3 {[%clk 0:00:18]}
59... Kf5 {[%clk 0:00:23.9]} 60. g3 {[%clk 0:00:18.7]} 60... h4 {[%clk
0:00:24.1]} 61. gxh4 {[%clk 0:00:18.5]} 61... gxh4 {[%clk 0:00:24.9]} 62. Kf2
{[%clk 0:00:17.1]} 62... Kf4 {[%clk 0:00:25.6]} 63. Kg2 {[%clk 0:00:18.1]} 63...
Bd1 {[%clk 0:00:26.4]} 64. Kh3 {[%clk 0:00:19.1]} 64... Bxf3 {[%clk 0:00:27.5]}
65. Kxh4 {[%clk 0:00:19.2]} 65... e4 {[%clk 0:00:28.6]} 0-1

[Event "*** Titled Tuesday Blitz"]
[Site "Chess.com"]
[Date "2018.04.03"]
[Round "4"]
[White "PenguinPacks"]
[Black "DACF2905"]
[Result "0-1"]
[WhiteElo "2136"]
[BlackElo "2049"]
[TimeControl "180+2"]
[EndTime "13:53:00 PDT"]
[Termination "DACF2905 won by resignation"]

1. d4 {[%clk 0:03:01]} 1... Nf6 {[%clk 0:03:00.3]} 2. c4 {[%clk 0:03:02.1]} 2...
e6 {[%clk 0:03:01.1]} 3. Nc3 {[%clk 0:03:02.1]} 3... Bb4 {[%clk 0:03:01.8]} 4.
Nf3 {[%clk 0:03:03.4]} 4... O-O {[%clk 0:03:00.7]} 5. Qc2 {[%clk 0:03:03.7]}
5... d6 {[%clk 0:02:59.1]} 6. e4 {[%clk 0:03:04.6]} 6... Bxc3+ {[%clk
0:02:55.1]} 7. bxc3 {[%clk 0:03:03.7]} 7... Nbd7 {[%clk 0:02:55.6]} 8. Bd3
{[%clk 0:03:02.4]} 8... e5 {[%clk 0:02:55.6]} 9. O-O {[%clk 0:03:03.7]} 9... b6
{[%clk 0:02:55.8]} 10. a4 {[%clk 0:03:05]} 10... a5 {[%clk 0:02:56.4]} 11. Bg5
{[%clk 0:01:44.6]} 11... h6 {[%clk 0:02:56.6]} 12. Bh4 {[%clk 0:01:45.8]} 12...
Qe7 {[%clk 0:02:43.4]} 13. Nd2 {[%clk 0:01:26.8]} 13... g5 {[%clk 0:02:42.2]}
14. Bg3 {[%clk 0:01:27.6]} 14... Nh5 {[%clk 0:02:42.6]} 15. Qd1 {[%clk
0:01:24.4]} 15... Nf4 {[%clk 0:02:42.2]} 16. Bc2 {[%clk 0:01:23.4]} 16... Kg7
{[%clk 0:02:35.8]} 17. Re1 {[%clk 0:01:24.8]} 17... Nf6 {[%clk 0:02:31.4]} 18.
Nf1 {[%clk 0:01:25]} 18... Bg4 {[%clk 0:02:28.7]} 19. f3 {[%clk 0:01:25.4]}
19... Be6 {[%clk 0:02:27]} 20. Ne3 {[%clk 0:01:25.8]} 20... Rfd8 {[%clk
0:02:18.1]} 21. Bb3 {[%clk 0:01:26.7]} 21... Qe8 {[%clk 0:02:05.4]} 22. Qc2
{[%clk 0:01:25.4]} 22... N6h5 {[%clk 0:01:59]} 23. Bf2 {[%clk 0:01:26]} 23...
Rab8 {[%clk 0:01:49.8]} 24. Nf5+ {[%clk 0:01:18.1]} 24... Bxf5 {[%clk 0:01:50]}
25. exf5 {[%clk 0:01:20]} 25... Qc6 {[%clk 0:01:08.8]} 26. Qe4 {[%clk
0:01:04.4]} 26... Qxe4 {[%clk 0:01:08.1]} 27. fxe4 {[%clk 0:01:06.3]} 27... Nd3
{[%clk 0:01:08]} 28. Re2 {[%clk 0:01:04.6]} 28... Nhf4 {[%clk 0:01:08]} 29. Rd2
{[%clk 0:01:05]} 29... Nxf2 {[%clk 0:01:04.6]} 30. Kxf2 {[%clk 0:01:03.5]} 30...
Nh5 {[%clk 0:00:52.9]} 31. Rad1 {[%clk 0:01:00.7]} 31... Nf6 {[%clk 0:00:46.7]}
32. Bc2 {[%clk 0:00:58.6]} 32... exd4 {[%clk 0:00:44.8]} 33. cxd4 {[%clk
0:01:00.5]} 33... Re8 {[%clk 0:00:45.7]} 34. Re1 {[%clk 0:01:00.9]} 34... Rbd8
{[%clk 0:00:44.4]} 35. Rde2 {[%clk 0:00:59.3]} 35... Nd7 {[%clk 0:00:32.8]} 36.
g4 {[%clk 0:00:56.4]} 36... f6 {[%clk 0:00:33.7]} 37. Kg3 {[%clk 0:00:57.2]}
37... c5 {[%clk 0:00:34.5]} 38. d5 {[%clk 0:00:52.3]} 38... Ne5 {[%clk
0:00:35.2]} 39. Bb3 {[%clk 0:00:53.6]} 39... h5 {[%clk 0:00:33.5]} 40. gxh5
{[%clk 0:00:53.9]} 40... Rh8 {[%clk 0:00:34.3]} 41. Rb2 {[%clk 0:00:42.6]} 41...
Nd3 {[%clk 0:00:33.3]} 42. Rbe2 {[%clk 0:00:42.6]} 42... Nxe1 {[%clk 0:00:32.9]}
43. Rxe1 {[%clk 0:00:44.5]} 43... Rxh5 {[%clk 0:00:33.7]} 44. Bd1 {[%clk
0:00:46.4]} 44... Rh4 {[%clk 0:00:34.7]} 45. Bg4 {[%clk 0:00:47.4]} 45... Rhh8
{[%clk 0:00:32.4]} 46. Rb1 {[%clk 0:00:46.6]} 46... Rb8 {[%clk 0:00:32.9]} 47.
Re1 {[%clk 0:00:46.6]} 47... Rhe8 {[%clk 0:00:33.5]} 48. Bf3 {[%clk 0:00:46.2]}
48... Kh6 {[%clk 0:00:32.6]} 49. Rh1 {[%clk 0:00:46.9]} 49... g4 {[%clk
0:00:31.8]} 50. Kxg4 {[%clk 0:00:42.1]} 50... Rg8+ {[%clk 0:00:32.5]} 51. Kf4
{[%clk 0:00:43.5]} 51... Rg5 {[%clk 0:00:30]} 52. h4 {[%clk 0:00:42.6]} 52...
Rg7 {[%clk 0:00:29.7]} 53. Rb1 {[%clk 0:00:43.3]} 53... Rh7 {[%clk 0:00:18.6]}
54. Rg1 {[%clk 0:00:42.8]} 54... Rg7 {[%clk 0:00:19.4]} 55. Rb1 {[%clk
0:00:43.2]} 55... Rbb7 {[%clk 0:00:18.2]} 56. Rb2 {[%clk 0:00:44.2]} 56... Rg1
{[%clk 0:00:17.9]} 57. Rb3 {[%clk 0:00:43.8]} 57... Rc1 {[%clk 0:00:18.1]} 58.
Be2 {[%clk 0:00:43]} 58... Rc2 {[%clk 0:00:17.7]} 59. Bd1 {[%clk 0:00:42.5]}
59... Rd2 {[%clk 0:00:18.4]} 60. Bf3 {[%clk 0:00:42.6]} 60... Ra2 {[%clk
0:00:17.1]} 61. Rb1 {[%clk 0:00:44.1]} 61... Rxa4 {[%clk 0:00:16.2]} 62. Rg1
{[%clk 0:00:44.8]} 62... Rg7 {[%clk 0:00:17]} 63. Rb1 {[%clk 0:00:44.9]} 63...
Rb4 {[%clk 0:00:18]} 64. Ra1 {[%clk 0:00:43.8]} 64... Rxc4 {[%clk 0:00:18.8]}
0-1

[Event "*** Titled Tuesday Blitz"]
[Site "Chess.com"]
[Date "2018.04.03"]
[Round "4"]
[White "FitnessBen"]
[Black "GMKrikor"]
[Result "0-1"]
[WhiteElo "2484"]
[BlackElo "2644"]
[TimeControl "180+2"]
[EndTime "13:53:03 PDT"]
[Termination "GMKrikor won by resignation"]

1. e4 {[%clk 0:03:01.9]} 1... e5 {[%clk 0:03:00.6]} 2. Nf3 {[%clk 0:03:02.4]}
2... Nc6 {[%clk 0:03:00.8]} 3. Bb5 {[%clk 0:03:03.2]} 3... Nf6 {[%clk
0:02:59.1]} 4. O-O {[%clk 0:03:03.4]} 4... Nxe4 {[%clk 0:02:58]} 5. d4 {[%clk
0:03:03.6]} 5... Nd6 {[%clk 0:02:58.8]} 6. Bxc6 {[%clk 0:03:05.1]} 6... dxc6
{[%clk 0:03:00.7]} 7. dxe5 {[%clk 0:03:06.6]} 7... Nf5 {[%clk 0:03:02.3]} 8.
Qxd8+ {[%clk 0:03:08.3]} 8... Kxd8 {[%clk 0:03:04.2]} 9. h3 {[%clk 0:03:09.8]}
9... Bd7 {[%clk 0:03:02.7]} 10. Nc3 {[%clk 0:03:10.7]} 10... Kc8 {[%clk
0:02:58.8]} 11. Ne4 {[%clk 0:03:11.5]} 11... h6 {[%clk 0:02:59.9]} 12. b3 {[%clk
0:03:12.4]} 12... b6 {[%clk 0:02:57.2]} 13. Bb2 {[%clk 0:03:13.4]} 13... Ne7
{[%clk 0:02:49.6]} 14. Rad1 {[%clk 0:03:11.7]} 14... a5 {[%clk 0:02:46]} 15. Ng3
{[%clk 0:02:49.5]} 15... c5 {[%clk 0:02:26.4]} 16. Nh5 {[%clk 0:02:39.9]} 16...
Rg8 {[%clk 0:01:55.2]} 17. Rfe1 {[%clk 0:02:37.8]} 17... a4 {[%clk 0:01:46.4]}
18. Rd2 {[%clk 0:01:48]} 18... axb3 {[%clk 0:01:25.3]} 19. axb3 {[%clk
0:01:49.9]} 19... Nc6 {[%clk 0:01:12.5]} 20. Nf4 {[%clk 0:01:38.9]} 20... Be6
{[%clk 0:01:02.3]} 21. Ra1 {[%clk 0:01:22.7]} 21... Rxa1+ {[%clk 0:00:59.6]} 22.
Bxa1 {[%clk 0:01:24.6]} 22... Bd7 {[%clk 0:00:45.7]} 23. Kf1 {[%clk 0:01:20.7]}
23... Be7 {[%clk 0:00:42.9]} 24. Nd5 {[%clk 0:01:15.7]} 24... Bd8 {[%clk
0:00:41.4]} 25. Ne1 {[%clk 0:01:08]} 25... Re8 {[%clk 0:00:41.7]} 26. f4 {[%clk
0:01:08.8]} 26... g5 {[%clk 0:00:25.2]} 27. Nd3 {[%clk 0:00:41.8]} 27... Bf5
{[%clk 0:00:20.6]} 28. fxg5 {[%clk 0:00:24.4]} 28... Bxg5 {[%clk 0:00:18.4]} 29.
Re2 {[%clk 0:00:25.2]} 29... Nd4 {[%clk 0:00:16.8]} 30. Bxd4 {[%clk 0:00:25]}
30... cxd4 {[%clk 0:00:18.7]} 31. N5b4 {[%clk 0:00:22.5]} 31... c5 {[%clk
0:00:14.1]} 32. Nd5 {[%clk 0:00:22.5]} 32... Kb7 {[%clk 0:00:15.5]} 33. g4
{[%clk 0:00:21.8]} 33... Be6 {[%clk 0:00:13.1]} 34. N5f4 {[%clk 0:00:20.9]}
34... Kc6 {[%clk 0:00:12.7]} 35. Kf2 {[%clk 0:00:18.8]} 35... Bc8 {[%clk
0:00:13.5]} 36. Kg3 {[%clk 0:00:19.6]} 36... Bd8 {[%clk 0:00:13.1]} 37. h4
{[%clk 0:00:19.3]} 37... Rg8 {[%clk 0:00:14.2]} 38. Nf2 {[%clk 0:00:18]} 38...
b5 {[%clk 0:00:09]} 39. e6 {[%clk 0:00:19]} 39... fxe6 {[%clk 0:00:08.6]} 40.
Nxe6 {[%clk 0:00:20.5]} 40... Bb6 {[%clk 0:00:06.1]} 41. Kf4 {[%clk 0:00:12.9]}
41... Kd5 {[%clk 0:00:05.2]} 42. Kf5 {[%clk 0:00:09.1]} 42... Rf8+ {[%clk
0:00:04.9]} 43. Kg6 {[%clk 0:00:08.2]} 43... Bxe6 {[%clk 0:00:06.2]} 44. Ne4
{[%clk 0:00:08.6]} 44... Bd8 {[%clk 0:00:04.7]} 45. c4+ {[%clk 0:00:08.5]} 45...
bxc4 {[%clk 0:00:03.8]} 46. bxc4+ {[%clk 0:00:10.2]} 46... Kxc4 {[%clk
0:00:05.4]} 47. Nd2+ {[%clk 0:00:11.5]} 47... Kd5 {[%clk 0:00:06.7]} 48. g5
{[%clk 0:00:11.8]} 48... hxg5 {[%clk 0:00:07.7]} 49. hxg5 {[%clk 0:00:13.7]}
49... Rg8+ {[%clk 0:00:09.2]} 50. Kh7 {[%clk 0:00:14.7]} 50... Rxg5 {[%clk
0:00:09.8]} 51. Nf3 {[%clk 0:00:16.2]} 51... Rg3 {[%clk 0:00:07.7]} 52. Ne1
{[%clk 0:00:06.5]} 52... Bf6 {[%clk 0:00:05.3]} 53. Ng2 {[%clk 0:00:03.9]} 53...
Bf5+ {[%clk 0:00:06.5]} 54. Kh6 {[%clk 0:00:02.4]} 54... Rh3+ {[%clk 0:00:08.1]}
0-1

[Event "*** Titled Tuesday Blitz"]
[Site "Chess.com"]
[Date "2018.04.03"]
[Round "4"]
[White "Saitama_Hero"]
[Black "AndrewDGreen"]
[Result "1-0"]
[WhiteElo "2140"]
[BlackElo "2115"]
[TimeControl "180+2"]
[EndTime "13:53:22 PDT"]
[Termination "Saitama_Hero won by resignation"]

1. e4 {[%clk 0:02:59.2]} 1... c5 {[%clk 0:03:00.5]} 2. Nc3 {[%clk 0:02:58.5]}
2... g6 {[%clk 0:03:00.7]} 3. g3 {[%clk 0:03:00.4]} 3... Bg7 {[%clk 0:03:01.3]}
4. Bg2 {[%clk 0:03:02.3]} 4... Nc6 {[%clk 0:03:02.5]} 5. Nge2 {[%clk 0:03:04.2]}
5... d6 {[%clk 0:03:02.5]} 6. O-O {[%clk 0:03:06.1]} 6... e5 {[%clk 0:03:03.3]}
7. d3 {[%clk 0:03:07.2]} 7... Nge7 {[%clk 0:03:03.8]} 8. f4 {[%clk 0:03:08.6]}
8... O-O {[%clk 0:03:00]} 9. Be3 {[%clk 0:03:00.4]} 9... Nd4 {[%clk 0:02:59.8]}
10. Qd2 {[%clk 0:02:59.6]} 10... Be6 {[%clk 0:02:56.5]} 11. f5 {[%clk
0:02:50.7]} 11... gxf5 {[%clk 0:02:55.2]} 12. Bh6 {[%clk 0:02:52.2]} 12... f6
{[%clk 0:02:45]} 13. Bxg7 {[%clk 0:02:51.3]} 13... Kxg7 {[%clk 0:02:45.3]} 14.
exf5 {[%clk 0:02:48.1]} 14... Nexf5 {[%clk 0:02:30.9]} 15. Ne4 {[%clk
0:02:44.9]} 15... Nxe2+ {[%clk 0:02:24.8]} 16. Qxe2 {[%clk 0:02:46.8]} 16... Nd4
{[%clk 0:02:22.1]} 17. Qd2 {[%clk 0:02:48.3]} 17... Rb8 {[%clk 0:02:12.2]} 18.
c3 {[%clk 0:02:45.8]} 18... Nf5 {[%clk 0:02:01.4]} 19. Bh3 {[%clk 0:02:27.2]}
19... Qd7 {[%clk 0:01:55.2]} 20. Bxf5 {[%clk 0:02:22.2]} 20... Bxf5 {[%clk
0:01:54.5]} 21. Nxd6 {[%clk 0:02:20.7]} 21... Bh3 {[%clk 0:01:51]} 22. Ne4
{[%clk 0:02:19.6]} 22... Bxf1 {[%clk 0:01:48]} 23. Rxf1 {[%clk 0:02:21.5]} 23...
Rbd8 {[%clk 0:01:42.5]} 24. Nxc5 {[%clk 0:01:59.9]} 24... Qd5 {[%clk 0:01:39.3]}
25. Qf2 {[%clk 0:01:39.3]} 25... b6 {[%clk 0:00:42.7]} 26. Ne4 {[%clk
0:01:38.5]} 26... Qxd3 {[%clk 0:00:44.2]} 27. Qf5 {[%clk 0:01:16.4]} 27... Qd7
{[%clk 0:00:38.3]} 28. Qh5 {[%clk 0:01:11.7]} 28... Qe6 {[%clk 0:00:35.2]} 29.
g4 {[%clk 0:00:48.5]} 29... Rd5 {[%clk 0:00:28.1]} 30. Ng3 {[%clk 0:00:43.7]}
30... Rd2 {[%clk 0:00:19.8]} 31. Nf5+ {[%clk 0:00:44.9]} 31... Kh8 {[%clk
0:00:20.5]} 32. Qh6 {[%clk 0:00:46.4]} 32... Rg8 {[%clk 0:00:19.4]} 33. Qxd2
{[%clk 0:00:45.3]} 33... Rxg4+ {[%clk 0:00:18.4]} 34. Ng3 {[%clk 0:00:41.6]}
34... f5 {[%clk 0:00:14.2]} 35. Qd8+ {[%clk 0:00:33.8]} 35... Rg8 {[%clk
0:00:14.5]} 36. Qh4 {[%clk 0:00:23.8]} 36... f4 {[%clk 0:00:14.1]} 37. Re1
{[%clk 0:00:24.7]} 37... fxg3 {[%clk 0:00:11.3]} 38. hxg3 {[%clk 0:00:26.6]}
38... Qd5 {[%clk 0:00:09.2]} 39. Qf6+ {[%clk 0:00:22.4]} 39... Rg7 {[%clk
0:00:10.5]} 40. Rxe5 {[%clk 0:00:20.7]} 40... Qd1+ {[%clk 0:00:11.5]} 41. Kf2
{[%clk 0:00:19.2]} 41... Qd2+ {[%clk 0:00:06.4]} 42. Re2 {[%clk 0:00:20.5]}
42... Qd7 {[%clk 0:00:07.2]} 43. Qd4 {[%clk 0:00:18.9]} 43... Qf7+ {[%clk
0:00:05.8]} 44. Kg2 {[%clk 0:00:19.6]} 44... h6 {[%clk 0:00:07.2]} 45. Rf2
{[%clk 0:00:20.7]} 45... Qg6 {[%clk 0:00:07.9]} 46. Qe5 {[%clk 0:00:19.2]} 46...
Kh7 {[%clk 0:00:07.7]} 47. Qf5 {[%clk 0:00:17.1]} 47... a5 {[%clk 0:00:07.7]}
48. Qxg6+ {[%clk 0:00:16.3]} 48... Rxg6 {[%clk 0:00:09.6]} 49. Rf7+ {[%clk
0:00:14.8]} 49... Kg8 {[%clk 0:00:10.7]} 50. Rb7 {[%clk 0:00:15.6]} 50... h5
{[%clk 0:00:11.8]} 51. Kh3 {[%clk 0:00:15.1]} 51... Kf8 {[%clk 0:00:11.7]} 52.
Kh4 {[%clk 0:00:16.4]} 52... Ke8 {[%clk 0:00:12]} 53. Kxh5 {[%clk 0:00:17.2]}
53... Rxg3 {[%clk 0:00:12.9]} 54. Rxb6 {[%clk 0:00:17.6]} 54... Rg2 {[%clk
0:00:13.1]} 55. a4 {[%clk 0:00:15.3]} 55... Kd7 {[%clk 0:00:13.1]} 56. b3 {[%clk
0:00:15.4]} 56... Rb2 {[%clk 0:00:12.6]} 57. Rb5 {[%clk 0:00:15.5]} 57... Kc6
{[%clk 0:00:12.6]} 58. Kg5 {[%clk 0:00:16.3]} 58... Rc2 {[%clk 0:00:11.8]} 59.
c4 {[%clk 0:00:17.3]} 59... Rb2 {[%clk 0:00:12.9]} 60. Kf5 {[%clk 0:00:18.7]}
60... Rf2+ {[%clk 0:00:13.7]} 61. Ke5 {[%clk 0:00:19.4]} 61... Re2+ {[%clk
0:00:15]} 62. Kd4 {[%clk 0:00:20.8]} 62... Rb2 {[%clk 0:00:15.3]} 63. Kc3 {[%clk
0:00:21.9]} 63... Rh2 {[%clk 0:00:15.1]} 64. Rxa5 {[%clk 0:00:23.2]} 64... Rh3+
{[%clk 0:00:16.3]} 65. Kb4 {[%clk 0:00:24.2]} 65... Kb6 {[%clk 0:00:17.1]} 66.
Rb5+ {[%clk 0:00:24.9]} 66... Kc6 {[%clk 0:00:18.4]} 67. a5 {[%clk 0:00:26.1]}
67... Rh1 {[%clk 0:00:17.4]} 68. a6 {[%clk 0:00:27.4]} 68... Ra1 {[%clk
0:00:18.4]} 69. Ra5 {[%clk 0:00:28.9]} 69... Rb1 {[%clk 0:00:19.3]} 70. a7
{[%clk 0:00:27.8]} 1-0